bitfinex-derivatives/quotes_BTCF0:USTF0_20240929
["timestamp","ask_amount","ask_price","bid_price","bid_amount"]
[1727641273286,0.07781,65937.0,65936.0,0.00030175]
[1727641274190,0.3628,65937.0,65934.0,0.07551707]
[1727641274485,0.3628,65937.0,65931.0,0.07551707]
[1727641274486,0.075816,65933.0,65931.0,0.07551707]
[1727641274686,0.155816,65932.0,65931.0,0.07551707]
[1727641274873,0.155816,65932.0,65930.0,0.07551707]
[1727641275077,0.155817,65931.0,65930.0,0.07551707]
[1727641275476,0.155817,65931.0,65929.0,0.07551707]
[1727641275673,0.08,65930.0,65929.0,0.07551707]
[1727641276485,0.08,65930.0,65926.0,0.0425]
[1727641276786,0.08,65927.0,65926.0,0.0425]
[1727641278583,0.081,65927.0,65926.0,0.0425]
[1727641279090,0.156822,65927.0,65926.0,0.0425]
[1727641279390,0.157822,65927.0,65926.0,0.0425]
[1727641280086,0.082,65927.0,65926.0,0.0425]
[1727641281077,0.002,65927.0,65926.0,0.0425]
[1727641281413,0.002,65927.0,65926.0,0.118323]
[1727641284590,0.04406053,65928.0,65926.0,0.118323]
[1727641285997,0.04506053,65928.0,65926.0,0.118323]
[1727641286894,0.04606053,65928.0,65926.0,0.14071618]
[1727641288697,0.04606053,65928.0,65927.0,0.3608]
[1727641290893,0.04606053,65928.0,65926.0,0.20105134]
[1727641291088,0.04606053,65928.0,65927.0,0.3608]
[1727641291681,0.12188153,65928.0,65927.0,0.3608]
[1727641291982,0.12188153,65928.0,65927.0,0.436622]
[1727641292594,0.12188153,65928.0,65927.0,0.49695716]
[1727641292891,0.12188153,65928.0,65927.0,0.436622]
[1727641294283,0.077821,65928.0,65927.0,0.436622]
[1727641295194,0.002,65928.0,65927.0,0.436622]
[1727641295587,0.002,65928.0,65927.0,0.51213907]
[1727641296295,0.002,65928.0,65927.0,0.61446968]
[1727641296613,0.002,65928.0,65927.0,0.53895261]
[1727641297391,0.002,65928.0,65927.0,0.62956583]
[1727641297893,0.002,65928.0,65927.0,0.53895261]
[1727641298194,0.002,65928.0,65927.0,0.62966931]
[1727641298390,0.002,65928.0,65927.0,0.53895261]
[1727641298695,0.002,65928.0,65927.0,0.66089823]
[1727641299496,0.07582,65930.0,65929.0,0.07582]
[1727641299704,0.1969869,65930.0,65929.0,0.07582]
[1727641299880,0.26908443,65930.0,65929.0,0.07582]
[1727641300212,0.34908443,65930.0,65929.0,0.07582]
[1727641300588,0.22791753,65930.0,65929.0,0.07582]
[1727641300791,0.22800184,65930.0,65929.0,0.07582]
[1727641301101,0.22900184,65930.0,65929.0,0.07582]
[1727641301397,0.23000184,65930.0,65929.0,0.07682]
[1727641303103,0.19122133,65930.0,65929.0,0.001]
[1727641306499,0.15782,65930.0,65929.0,0.001]
[1727641307001,0.15782,65930.0,65929.0,0.10366681]
[1727641307201,0.15782,65930.0,65929.0,0.17940277]
[1727641307419,0.15782,65930.0,65929.0,0.17940322]
[1727641307598,0.15782,65930.0,65929.0,0.10366681]
[1727641311499,0.002,65930.0,65929.0,0.25948681]
[1727641311704,0.002,65930.0,65929.0,0.3817061]
[1727641314601,0.07417901,65930.0,65929.0,0.15682]
[1727641314810,0.07417901,65930.0,65929.0,0.07682]
[1727641315805,0.19909769,65930.0,65929.0,0.07682]
[1727641316005,0.2712767,65930.0,65929.0,0.07682]
[1727641317602,0.2738267,65930.0,65929.0,0.07682]
[1727641319403,0.15254801,65930.0,65929.0,0.07682]
[1727641319814,0.15254801,65930.0,65929.0,0.001]
[1727641319815,0.33504,65930.0,65929.0,0.001]
[1727641320119,0.19904928,65930.0,65929.0,0.001]
[1727641320701,0.35028534,65930.0,65929.0,0.001]
[1727641321615,0.075821,65928.0,65927.0,0.3608]
[1727641321814,0.075821,65928.0,65927.0,0.46352222]
[1727641323008,0.076821,65928.0,65927.0,0.46352222]
[1727641324419,0.077821,65928.0,65927.0,0.46352222]
[1727641326309,0.002,65928.0,65927.0,0.46352222]
[1727641326912,0.077821,65928.0,65927.0,0.46352222]
[1727641327314,0.002,65928.0,65927.0,0.6302122]
[1727641327750,0.002,65928.0,65927.0,0.53934422]
[1727641328015,0.002,65928.0,65927.0,0.63019151]
[1727641328722,0.002,65928.0,65927.0,0.53934422]
[1727641329519,0.078369,65930.0,65927.0,0.53934422]
[1727641329520,0.04243048,65930.0,65927.0,0.53934422]
[1727641329718,0.19366654,65930.0,65927.0,0.436622]
[1727641329926,0.11896073,65929.0,65927.0,0.436622]
[1727641330221,0.11896073,65929.0,65928.0,0.075821]
[1727641331016,0.19478073,65929.0,65928.0,0.075821]
[1727641331522,0.19578073,65929.0,65928.0,0.075821]
[1727641331726,0.11996073,65929.0,65928.0,0.075821]
[1727641332023,0.19578073,65929.0,65928.0,0.075821]
[1727641332416,0.1957935,65929.0,65928.0,0.075821]
[1727641333117,0.1967935,65929.0,65928.0,0.075821]
[1727641333728,0.1967935,65929.0,65927.0,0.3608]
[1727641334020,0.1947945,65928.0,65927.0,0.3608]
[1727641335415,0.1947945,65928.0,65927.0,0.38213259]
[1727641336324,0.34603056,65928.0,65927.0,0.3608]
[1727641336524,0.1947945,65928.0,65927.0,0.3608]
[1727641336730,0.075821,65928.0,65927.0,0.46337951]
[1727641337117,0.076821,65928.0,65927.0,0.46338268]
[1727641337614,0.077821,65928.0,65927.0,0.46438268]
[1727641338728,0.077821,65928.0,65927.0,0.10358268]
[1727641341920,0.077821,65928.0,65927.0,0.001]
[1727641342121,0.077821,65928.0,65927.0,0.10355057]
[1727641344531,0.077821,65928.0,65927.0,0.001]
[1727641347538,0.077821,65928.0,65927.0,0.07673022]
[1727641348333,0.077821,65928.0,65927.0,0.001]
[1727641348631,0.077821,65928.0,65927.0,0.07673022]
[1727641349634,0.077821,65928.0,65927.0,0.1794685]
[1727641350724,0.157821,65928.0,65927.0,0.10373828]
[1727641351727,0.27633765,65928.0,65927.0,0.001]
[1727641351932,0.22978887,65928.0,65927.0,0.001]
[1727641352133,0.19112332,65928.0,65927.0,0.001]
[1727641354536,0.2972611,65928.0,65927.0,0.001]
[1727641355335,0.3404611,65928.0,65927.0,0.001]
[1727641355639,0.27275149,65928.0,65927.0,0.001]
[1727641356341,0.075829,65921.0,65920.0,0.0035]
[1727641356541,0.075829,65921.0,65919.0,0.38297791]
[1727641356542,0.07583,65920.0,65919.0,0.38297791]
[1727641356739,0.10888738,65920.0,65919.0,0.38297791]
[1727641357943,0.10888738,65920.0,65919.0,0.38397791]
[1727641357944,0.10988738,65920.0,65919.0,0.38397791]
[1727641358138,0.14825698,65920.0,65919.0,0.38397791]
[1727641359045,0.07242698,65920.0,65919.0,0.38397791]
[1727641359843,0.001,65920.0,65919.0,0.48676867]
[1727641360144,0.001,65920.0,65919.0,0.57762322]
[1727641360548,0.002,65920.0,65919.0,0.57762322]
[1727641362144,0.07783,65920.0,65919.0,0.57762322]
[1727641362934,0.07783,65920.0,65919.0,0.21682322]
[1727641364645,0.07683,65920.0,65919.0,0.21582322]
[1727641364830,0.001,65920.0,65919.0,0.21582322]
[1727641365240,0.005,65920.0,65919.0,0.21582322]
[1727641365543,0.005,65920.0,65919.0,0.22382322]
[1727641366135,0.008,65920.0,65919.0,0.22382322]
[1727641366847,0.11411513,65920.0,65919.0,0.03017791]
[1727641367145,0.14716567,65920.0,65919.0,0.03017791]
[1727641369638,0.22299567,65920.0,65919.0,0.03017791]
[1727641369838,0.22554567,65920.0,65919.0,0.03017791]
[1727641370531,0.19249513,65920.0,65919.0,0.03017791]
[1727641370738,0.22555064,65920.0,65919.0,0.03017791]
[1727641372139,0.11943551,65920.0,65919.0,0.03017791]
[1727641372637,0.04360551,65920.0,65919.0,0.03017791]
[1727641372844,0.01055,65920.0,65919.0,0.18600891]
[1727641374851,0.0835,65928.0,65919.0,0.41102239]
[1727641375149,0.079321,65928.0,65927.0,0.075748]
[1727641375348,0.075821,65928.0,65927.0,0.17840193]
[1727641375849,0.0427,65935.0,65919.0,0.10950891]
[1727641375850,0.075822,65927.0,65926.0,0.075748]
[1727641376250,0.08,65927.0,65925.0,0.075748]
[1727641376553,0.155823,65926.0,65921.0,0.0908976]
[1727641376754,0.075826,65924.0,65922.0,0.19353272]
[1727641376951,0.075826,65924.0,65923.0,0.10263512]
[1727641378250,0.163826,65924.0,65923.0,0.10363512]
[1727641378952,0.170826,65924.0,65923.0,0.10363512]
[1727641379553,0.170826,65924.0,65923.0,0.07676641]
[1727641379854,0.171826,65924.0,65923.0,0.001]
[1727641381856,0.20507026,65924.0,65923.0,0.001]
[1727641385156,0.24359473,65924.0,65923.0,0.001]
[1727641389856,0.24359473,65924.0,65923.0,0.17940088]
[1727641389857,0.171826,65924.0,65923.0,0.17940088]
[1727641396749,0.171826,65924.0,65923.0,0.001]
[1727641399165,0.532626,65924.0,65923.0,0.001]
[1727641404968,0.67191253,65924.0,65923.0,0.001]
[1727641405560,0.56574311,65924.0,65923.0,0.001]
[1727641405974,0.56574311,65924.0,65914.0,0.00760999]
[1727641405975,0.075836,65915.0,65914.0,0.00760999]
[1727641406271,0.1473744,65915.0,65914.0,0.00410999]
[1727641407365,0.1473744,65915.0,65914.0,0.00510999]
[1727641408471,0.1473744,65915.0,65914.0,0.00410999]
[1727641410362,0.26859155,65915.0,65914.0,0.00410999]
[1727641411970,0.075836,65915.0,65914.0,0.00410999]
[1727641412565,0.075836,65915.0,65914.0,0.06467382]
[1727641413478,0.436636,65915.0,65914.0,0.06467382]
[1727641414172,0.436636,65915.0,65914.0,0.00410999]
[1727641416377,0.436636,65915.0,65914.0,0.06465079]
[1727641419876,0.436636,65915.0,65914.0,0.00410999]
[1727641419877,0.55394811,65915.0,65914.0,0.00410999]
[1727641421272,0.70537366,65915.0,65914.0,0.00410999]
[1727641421467,0.55394811,65915.0,65914.0,0.00410999]
[1727641422281,0.50738736,65915.0,65914.0,0.00410999]
[1727641424573,0.07075136,65915.0,65914.0,0.00410999]
[1727641424788,0.20115924,65915.0,65914.0,0.00410999]
[1727641424977,0.15075136,65915.0,65914.0,0.00410999]
[1727641425780,0.15330136,65915.0,65914.0,0.00410999]
[1727641426884,0.08255,65915.0,65914.0,0.00410999]
[1727641428171,0.158386,65915.0,65914.0,0.00410999]
[1727641430377,0.08255,65915.0,65914.0,0.00410999]
[1727641433287,0.08255,65915.0,65914.0,0.0798764]
[1727641433778,0.08255,65915.0,65914.0,0.18274508]
[1727641433975,0.08255,65915.0,65914.0,0.00410999]
[1727641434774,0.08255,65915.0,65914.0,0.18270856]
[1727641434978,0.08255,65915.0,65914.0,0.00410999]
[1727641437381,0.158386,65915.0,65914.0,0.00410999]
[1727641441993,0.31789347,65915.0,65914.0,0.00410999]
[1727641442200,0.35092248,65915.0,65914.0,0.00410999]
[1727641442695,0.22976324,65915.0,65914.0,0.00410999]
[1727641443585,0.2296543,65915.0,65914.0,0.00410999]
[1727641444000,0.35081354,65915.0,65914.0,0.00410999]
[1727641444188,0.2296543,65915.0,65914.0,0.00410999]
[1727641444383,0.35100076,65915.0,65914.0,0.00410999]
[1727641444589,0.44310372,65915.0,65914.0,0.00410999]
[1727641445192,0.27621335,65915.0,65914.0,0.00410999]
[1727641447986,0.27621335,65915.0,65914.0,0.00237699]
[1727641448390,0.27582836,65915.0,65914.0,0.00237699]
[1727641448791,0.63662836,65915.0,65914.0,0.00237699]
[1727641450004,0.519186,65915.0,65914.0,0.00237699]
[1727641451392,0.158386,65915.0,65914.0,0.00237699]
[1727641451598,0.519186,65915.0,65914.0,0.00237699]
[1727641455500,0.158386,65915.0,65914.0,0.00237699]
[1727641455812,0.519186,65915.0,65914.0,0.00237699]
[1727641457096,0.63665727,65915.0,65914.0,0.00237699]
[1727641457707,0.78835018,65915.0,65914.0,0.00237699]
[1727641459706,0.67087891,65915.0,65914.0,0.00237699]
[1727641459910,0.78834371,65915.0,65914.0,0.00237699]
[1727641462311,0.67438532,65915.0,65914.0,0.00237699]
[1727641462507,0.29346284,65915.0,65914.0,0.07821399]
[1727641462701,0.07408425,65915.0,65914.0,0.07821399]
[1727641463005,0.10870183,65915.0,65914.0,0.07821399]
[1727641463209,0.03565089,65915.0,65914.0,0.07821399]
[1727641464700,0.03565089,65915.0,65914.0,0.00237699]
[1727641464910,0.14180272,65915.0,65914.0,0.00237699]
[1727641465110,0.00255,65915.0,65914.0,0.00237699]
[1727641465806,0.155833,65918.0,65914.0,0.00237699]
[1727641466006,0.155833,65918.0,65915.0,0.06060357]
[1727641467005,0.075834,65917.0,65915.0,0.06060357]
[1727641467442,0.075834,65917.0,65914.0,0.00237699]
[1727641467443,0.075834,65917.0,65914.0,0.06298056]
[1727641467714,0.08,65915.0,65914.0,0.00237699]
[1727641467897,0.08,65915.0,65914.0,0.06297559]
[1727641469509,0.08,65915.0,65914.0,0.00237699]
[1727641469706,0.155836,65915.0,65914.0,0.00237699]
[1727641472007,0.22710197,65915.0,65914.0,0.00237699]
[1727641472905,0.3483648,65915.0,65914.0,0.00237699]
[1727641473104,0.22710197,65915.0,65914.0,0.00237699]
[1727641479618,0.27366042,65915.0,65914.0,0.00237699]
[1727641480023,0.155836,65915.0,65914.0,0.04782866]
[1727641480723,0.158386,65915.0,65914.0,0.00237699]
[1727641481024,0.158386,65915.0,65914.0,0.04783862]
[1727641482316,0.158386,65915.0,65914.0,0.00237699]
[1727641482516,0.158386,65915.0,65914.0,0.04784321]
[1727641482717,0.158386,65915.0,65914.0,0.00237699]
[1727641495332,0.19736019,65915.0,65914.0,0.00237699]
[1727641495731,0.27736019,65915.0,65914.0,0.00237699]
[1727641496029,0.42908708,65915.0,65914.0,0.00237699]
[1727641497224,0.27736019,65915.0,65914.0,0.00237699]
[1727641500127,0.44422239,65915.0,65914.0,0.00237699]
[1727641500334,0.27736019,65915.0,65914.0,0.00237699]
[1727641500821,0.40541842,65915.0,65914.0,0.00237699]
[1727641501021,0.44432418,65915.0,65914.0,0.00237699]
[1727641502124,0.32534999,65915.0,65914.0,0.06297559]
[1727641502329,0.158386,65915.0,65914.0,0.06297559]
[1727641506357,0.158386,65915.0,65914.0,0.00237699]
[1727641506727,0.158386,65915.0,65914.0,0.04790333]
[1727641507345,0.158386,65915.0,65914.0,0.00237699]
[1727641509347,0.27706938,65915.0,65914.0,0.00237699]
[1727641511837,0.86872838,65915.0,65914.0,0.00237699]
[1727641512240,1.46872838,65915.0,65906.0,0.0035]
[1727641512442,0.075848,65904.0,65901.0,0.0035]
[1727641512739,0.075854,65899.0,65897.0,0.0432]
[1727641512947,0.075854,65899.0,65896.0,0.00030175]
[1727641512948,0.34933952,65898.0,65896.0,0.00030175]
[1727641513134,0.07212206,65897.0,65896.0,0.00030175]
[1727641514045,0.14797906,65897.0,65896.0,0.00030175]
[1727641514249,0.29871449,65897.0,65896.0,0.00030175]
[1727641514540,0.32889104,65897.0,65896.0,0.00030175]
[1727641514734,0.19254916,65897.0,65896.0,0.00030175]
[1727641515237,0.32989105,65897.0,65896.0,0.00330175]
[1727641515438,0.19354916,65897.0,65896.0,0.00330175]
[1727641516042,0.19254916,65897.0,65896.0,0.00330175]
[1727641516242,0.32975281,65897.0,65896.0,0.00330175]
[1727641516544,0.075864,65891.0,65889.0,0.0035]
[1727641516748,0.075864,65891.0,65887.0,0.0396]
[1727641516749,0.08,65890.0,65887.0,0.0396]
[1727641516950,0.2731858,65890.0,65887.0,0.0396]
[1727641517151,0.07212206,65889.0,65887.0,0.0396]
[1727641517338,0.08,65890.0,65887.0,0.08512634]
[1727641517734,0.081,65890.0,65887.0,0.08512634]
[1727641518335,0.001,65889.0,65887.0,0.0396]
[1727641518843,0.156865,65890.0,65887.0,0.0396]
[1727641519453,0.001,65889.0,65887.0,0.0396]
[1727641520736,0.002,65889.0,65887.0,0.0396]
[1727641520948,0.001,65889.0,65887.0,0.0396]
[1727641521546,0.002,65889.0,65887.0,0.0396]
[1727641521750,0.002,65889.0,65888.0,0.08]
[1727641521948,0.002,65889.0,65888.0,0.155867]
[1727641522750,0.002,65889.0,65888.0,0.075867]
[1727641523151,0.002,65889.0,65888.0,0.20139334]
[1727641523345,0.001,65889.0,65888.0,0.155867]
[1727641523545,0.002,65889.0,65888.0,0.155867]
[1727641523850,0.0835,65897.0,65891.0,0.075863]
[1727641524042,0.08,65897.0,65894.0,0.3608]
[1727641524258,0.08,65897.0,65895.0,0.0819]
[1727641524438,0.075856,65898.0,65895.0,0.0819]
[1727641525254,0.001,65897.0,65895.0,0.0819]
[1727641525445,0.002,65897.0,65895.0,0.0819]
[1727641525949,0.002,65897.0,65895.0,0.157759]
[1727641526250,0.077856,65898.0,65895.0,0.157759]
[1727641527053,0.001,65897.0,65895.0,0.157759]
[1727641527256,0.001,65897.0,65895.0,0.20308086]
[1727641528055,0.002,65897.0,65895.0,0.20308086]
[1727641528548,0.075858,65896.0,65895.0,0.20308086]
[1727641529746,0.155858,65896.0,65895.0,0.12722186]
[1727641530154,0.155858,65896.0,65895.0,0.0819]
[1727641530349,0.155858,65896.0,65895.0,0.12722186]
[1727641531049,0.156858,65896.0,65895.0,0.12722186]
[1727641532344,0.2754235,65896.0,65895.0,0.0819]
[1727641536080,0.41155492,65896.0,65895.0,0.0819]
[1727641536251,0.2754235,65896.0,65895.0,0.0819]
[1727641536957,0.27531163,65896.0,65895.0,0.0819]
[1727641537656,0.27531163,65896.0,65895.0,0.0401]
[1727641539253,0.157858,65896.0,65895.0,0.0401]
[1727641540356,0.157858,65896.0,65895.0,0.11586641]
[1727641540550,0.157858,65896.0,65895.0,0.0401]
[1727641541355,0.157858,65896.0,65895.0,0.21884729]
[1727641541953,0.157858,65896.0,65895.0,0.11586641]
[1727641542362,0.157858,65896.0,65895.0,0.21891372]
[1727641542546,0.157858,65896.0,65895.0,0.17881372]
[1727641543456,0.157858,65896.0,65895.0,0.07576641]
[1727641544164,0.157858,65896.0,65895.0,0.1788181]
[1727641545767,0.157858,65896.0,65895.0,0.17882094]
[1727641546357,0.157858,65896.0,65895.0,0.17881485]
[1727641546861,0.157858,65896.0,65895.0,0.1030456]
[1727641547055,0.157858,65896.0,65895.0,0.17881606]
[1727641547263,0.11481812,65896.0,65894.0,0.3608]
[1727641547458,0.10867712,65895.0,65894.0,0.3608]
[1727641548561,0.10967712,65895.0,65894.0,0.3608]
[1727641549259,0.11067712,65895.0,65894.0,0.3608]
[1727641551172,0.11071835,65895.0,65894.0,0.3608]
[1727641551473,0.1488521,65895.0,65894.0,0.3608]
[1727641553179,0.07586,65894.0,65891.0,0.02228633]
[1727641553478,0.08,65892.0,65889.0,0.440166]
[1727641553668,0.03285935,65891.0,65889.0,0.436666]
[1727641553869,0.03285935,65890.0,65889.0,0.436666]
[1727641554266,0.08,65892.0,65889.0,0.66283421]
[1727641554473,0.08,65892.0,65890.0,0.22616821]
[1727641554773,0.081,65892.0,65891.0,0.22616821]
[1727641555280,0.08,65892.0,65891.0,0.22616821]
[1727641556989,0.081,65892.0,65891.0,0.22616821]
[1727641557783,0.082,65892.0,65891.0,0.22616821]
[1727641559298,0.157862,65892.0,65891.0,0.10318073]
[1727641559887,0.157862,65892.0,65891.0,0.19425204]
[1727641560199,0.200262,65892.0,65891.0,0.10318073]
[1727641560592,0.200262,65892.0,65891.0,0.10319877]
[1727641561298,0.075865,65890.0,65889.0,0.07587162]
[1727641561484,0.075866,65889.0,65888.0,0.07587162]
[1727641561681,0.155866,65889.0,65887.0,0.07587568]
[1727641561898,0.075867,65888.0,65887.0,0.07587568]
[1727641562094,0.155867,65888.0,65887.0,0.07587568]
[1727641562294,0.155867,65888.0,65881.0,0.3608]
[1727641562295,0.11343905,65888.0,65881.0,0.3608]
[1727641562491,0.08,65882.0,65881.0,0.3608]
[1727641563686,0.075873,65883.0,65881.0,0.3608]
[1727641563888,0.075867,65888.0,65881.0,0.436675]
[1727641564200,0.076867,65888.0,65887.0,0.3608]
[1727641564398,0.11033699,65888.0,65887.0,0.3608]
[1727641564697,0.076867,65888.0,65887.0,0.3608]
[1727641564997,0.076867,65888.0,65887.0,0.4408]
[1727641565293,0.075867,65888.0,65887.0,0.4408]
[1727641565994,0.076867,65888.0,65887.0,0.4408]
[1727641566192,0.077867,65888.0,65887.0,0.4408]
[1727641568332,0.077867,65888.0,65887.0,0.3608]
[1727641574009,0.0035,65896.0,65889.0,0.075865]
[1727641574211,0.0035,65900.0,65895.0,0.42142268]
[1727641574393,0.075853,65900.0,65899.0,0.04546458]
[1727641574593,0.075853,65900.0,65899.0,0.06062268]
[1727641575201,0.075853,65900.0,65898.0,0.06062268]
[1727641576205,0.075853,65900.0,65897.0,0.06062268]
[1727641576404,0.075853,65900.0,65898.0,0.06062268]
[1727641576607,0.08,65899.0,65898.0,0.06062268]
[1727641576806,0.075855,65898.0,65896.0,0.42142268]
[1727641577207,0.075855,65898.0,65896.0,0.3608]
[1727641578401,0.076855,65898.0,65896.0,0.3608]
[1727641579019,0.076855,65898.0,65897.0,0.04545011]
[1727641579708,0.077855,65898.0,65897.0,0.04545011]
[1727641580296,0.076855,65898.0,65897.0,0.04545011]
[1727641580610,0.077855,65898.0,65897.0,0.04545011]
[1727641583311,0.002,65898.0,65897.0,0.04545011]
[1727641584615,0.1215789,65898.0,65896.0,0.3608]
[1727641584810,0.1195789,65897.0,65896.0,0.3608]
[1727641586809,0.1205789,65897.0,65896.0,0.3608]
[1727641587004,0.1215789,65897.0,65896.0,0.3608]
[1727641587398,0.08779293,65897.0,65896.0,0.3608]
[1727641587911,0.12157616,65897.0,65896.0,0.3608]
[1727641589711,0.27328616,65897.0,65896.0,0.3608]
[1727641590415,0.12157616,65897.0,65896.0,0.3608]
[1727641590810,0.12157616,65897.0,65894.0,0.075859]
[1727641591043,0.21626113,65895.0,65894.0,0.075859]
[1727641591320,0.19957616,65895.0,65894.0,0.075859]
[1727641592415,0.08,65895.0,65894.0,0.075859]
[1727641592615,0.08,65895.0,65894.0,0.436659]
[1727641592916,0.08,65895.0,65894.0,0.3608]
[1727641593112,0.081,65895.0,65894.0,0.49728268]
[1727641593318,0.082,65895.0,65894.0,0.49728268]
[1727641597211,0.082,65895.0,65894.0,0.43666]
[1727641598332,0.157859,65895.0,65894.0,0.43666]
[1727641599018,0.157859,65895.0,65894.0,0.49728733]
[1727641599613,0.157859,65895.0,65894.0,0.13648733]
[1727641599921,0.157859,65895.0,65894.0,0.49728733]
[1727641600214,0.157859,65895.0,65894.0,0.43666]
[1727641600922,0.157859,65895.0,65894.0,0.07586]
[1727641601221,0.157859,65895.0,65894.0,0.43666]
[1727641601422,0.157859,65895.0,65894.0,0.3608]
[1727641601739,0.157859,65895.0,65890.0,0.0035]
[1727641601740,0.075861,65893.0,65890.0,0.0035]
[1727641602019,0.075866,65889.0,65888.0,0.04550103]
[1727641602316,0.075866,65889.0,65887.0,0.04550103]
[1727641602317,0.075867,65888.0,65887.0,0.04550103]
[1727641603415,0.075869,65886.0,65885.0,0.04550103]
[1727641603614,0.155869,65886.0,65885.0,0.04550103]
[1727641604717,0.156869,65886.0,65885.0,0.04550103]
[1727641605319,0.081,65886.0,65882.0,0.04550103]
[1727641605616,0.081,65886.0,65882.0,0.04546734]
[1727641605617,0.08,65883.0,65882.0,0.04546734]
[1727641605820,0.08,65883.0,65881.0,0.060661]
[1727641606221,0.08,65883.0,65880.0,0.060661]
[1727641606819,0.155874,65883.0,65880.0,0.060661]
[1727641607026,0.075874,65882.0,65880.0,0.060661]
[1727641607518,0.03301498,65881.0,65877.0,0.438119]
[1727641607721,0.08,65879.0,65877.0,0.436679]
[1727641609121,0.076875,65881.0,65877.0,0.436679]
[1727641609929,0.001,65881.0,65877.0,0.436679]
[1727641610117,0.075876,65880.0,65877.0,0.436679]
[1727641610427,0.001,65879.0,65877.0,0.436679]
[1727641610927,0.075876,65880.0,65877.0,0.436679]
[1727641611120,0.075877,65879.0,65877.0,0.436679]
[1727641611523,0.001,65880.0,65877.0,0.436679]
[1727641611723,0.076878,65879.0,65877.0,0.436679]
[1727641613327,0.075878,65878.0,65877.0,0.436679]
[1727641614623,0.02119878,65882.0,65877.0,0.66201225]
[1727641614823,0.075875,65881.0,65880.0,0.09082985]
[1727641615025,0.075875,65881.0,65880.0,0.19362966]
[1727641617024,0.075872,65884.0,65880.0,0.10279981]
[1727641617217,0.002,65881.0,65880.0,0.075876]
[1727641617419,0.002,65881.0,65880.0,0.17764554]
[1727641617620,0.002,65881.0,65880.0,0.29893653]
[1727641617820,0.18185647,65888.0,65883.0,0.075872]
[1727641617821,0.10598947,65888.0,65883.0,0.075872]
[1727641618127,0.10598947,65888.0,65887.0,0.17082102]
[1727641618128,0.18185647,65888.0,65887.0,0.17082102]
[1727641618429,0.18185647,65888.0,65887.0,0.27259056]
[1727641620118,0.18285647,65888.0,65887.0,0.27259056]
[1727641620317,0.18385647,65888.0,65887.0,0.27359056]
[1727641620523,0.18385647,65888.0,65887.0,0.19359056]
[1727641620727,0.18385647,65888.0,65887.0,0.19339663]
[1727641620924,0.18385647,65888.0,65887.0,0.10257561]
[1727641622832,0.11226217,65888.0,65887.0,0.001]
[1727641627130,0.21815776,65888.0,65887.0,0.001]
[1727641627832,0.03639517,65888.0,65887.0,0.076868]
[1727641628235,0.14229076,65888.0,65887.0,0.076868]
[1727641628436,0.03639517,65888.0,65887.0,0.076868]
[1727641628624,0.11226217,65888.0,65887.0,0.076868]
[1727641629024,0.03639517,65888.0,65887.0,0.076868]
[1727641629633,0.002,65888.0,65887.0,0.17841792]
[1727641630226,0.077867,65888.0,65887.0,0.17841792]
[1727641630625,0.002,65888.0,65887.0,0.17841792]
[1727641631231,0.002,65888.0,65887.0,0.26923894]
[1727641632939,0.002,65888.0,65887.0,0.17841792]
[1727641633137,0.002,65888.0,65887.0,0.25841792]
[1727641633537,0.002,65888.0,65887.0,0.156868]
[1727641633742,0.002,65888.0,65887.0,0.34922998]
[1727641634337,0.002,65888.0,65887.0,0.25840896]
[1727641635435,0.00455,65888.0,65887.0,0.25840896]
[1727641637737,0.03923783,65888.0,65887.0,0.156868]
[1727641638039,0.03923783,65888.0,65887.0,0.517668]
[1727641638237,0.03923783,65888.0,65887.0,1.572988]
[1727641638438,0.03923783,65888.0,65887.0,1.582988]
[1727641638742,0.00455,65888.0,65887.0,1.582988]
[1727641639159,0.00455,65888.0,65887.0,1.572988]
[1727641640937,0.00455,65888.0,65887.0,1.117668]
[1727641641143,0.00455,65888.0,65887.0,1.572988]
[1727641641439,0.0035,65892.0,65887.0,1.572988]
[1727641641640,0.03493132,65891.0,65887.0,0.437668]
[1727641641844,0.03493132,65890.0,65887.0,0.437668]
[1727641642137,0.03495195,65889.0,65888.0,0.075867]
[1727641643440,0.03695686,65889.0,65888.0,0.076867]
[1727641644643,0.002,65889.0,65888.0,0.26902535]
[1727641645055,0.002,65889.0,65888.0,0.27900224]
[1727641645248,0.002,65889.0,65888.0,0.18808179]
[1727641645852,0.0035,65898.0,65897.0,0.075857]
[1727641646043,0.075854,65899.0,65898.0,0.075855]
[1727641646240,0.075854,65899.0,65898.0,0.13647329]
[1727641647151,0.075854,65899.0,65898.0,0.13947329]
[1727641647152,0.076854,65899.0,65898.0,0.13947329]
[1727641649153,0.076854,65899.0,65898.0,0.078855]
[1727641649348,0.001,65899.0,65898.0,0.078855]
[1727641649550,0.002,65899.0,65898.0,0.14148123]
[1727641649945,0.0035,65906.0,65898.0,0.015]
[1727641650248,0.04037642,65909.0,65904.0,0.42142073]
[1727641650445,0.04037642,65909.0,65907.0,0.075845]
[1727641650638,0.04037642,65909.0,65908.0,0.075844]
[1727641650841,0.00227642,65909.0,65908.0,0.075844]
[1727641651249,0.0035,65915.0,65906.0,0.51657299]
[1727641651250,0.0035,65915.0,65906.0,0.51801299]
[1727641651471,0.0381,65917.0,65914.0,0.4408]
[1727641651751,0.0381,65917.0,65916.0,0.04541031]
[1727641652053,0.0381,65917.0,65915.0,0.075836]
[1727641652449,0.0381,65917.0,65915.0,0.12122103]
[1727641652650,0.011,65917.0,65916.0,0.075835]
[1727641652848,0.06440597,65917.0,65916.0,0.075835]
[1727641653053,0.13589405,65917.0,65916.0,0.075835]
[1727641653260,0.14720453,65917.0,65916.0,0.075835]
[1727641653558,0.08348808,65917.0,65916.0,0.075835]
[1727641653760,0.08048808,65917.0,65916.0,0.075835]
[1727641653956,0.08248808,65917.0,65916.0,0.075835]
[1727641654862,0.08248808,65917.0,65916.0,0.155835]
[1727641656456,0.04085673,65917.0,65916.0,0.155835]
[1727641656647,0.04663135,65917.0,65916.0,0.155835]
[1727641656849,0.08248808,65917.0,65916.0,0.155835]
[1727641657553,0.08248808,65917.0,65916.0,0.17779323]